Cogmind - Beta 17 @@@ ROGUE MODE // 2026.07.16 @ 21:02:51 Player: Dadrick Result: Destroyed by XV-441(R) with Subdweller Laser Performance ------------- Evolutions (0) 0 Regions Visited (2) 400 Robots Destroyed (39) 195 Value Destroyed (901) 901 Prototype IDs (0) 0 Alien Tech Used (0) 0 Bonus (0) 0 TOTAL SCORE: 1496 Bonus ------- None Cogmind --------- Core Integrity 0/250 Matter 266/300 Energy 250/250 System Corruption 1% Temperature Cool (6) Movement Treading (160) Location -10/Subcaves Parts ------- > --- POWER (1) -------- Ion Engine > --- PROPULSION (2) --- Spiked Treads Spiked Treads > --- UTILITY (2) ------ Scrap Shield > --- WEAPON (2) ------- Assault Rifle Battle Rifle > --- INVENTORY (5) ---- Subdweller Power Source Light Treads Seismic Detector Subdweller Beam Cannon Makeshift Hammer Peak State ------------ > --- POWER ------------ Ion Engine > --- PROPULSION ------- Spiked Treads Spiked Treads > --- UTILITY ---------- Scrap Shield > --- WEAPON ----------- Subdweller Beam Cannon Battle Rifle > --- INVENTORY -------- Subdweller Power Source Light Treads Seismic Detector Assault Rifle Hammer [Rating: 13] Favorites ----------- Power Ion Engine Engine Ion Engine Propulsion Light Treads Treads Light Treads Utility Large Storage Unit Device Seismic Detector Storage Large Storage Unit Protection Scrap Shield Weapon Heavy EM Pulse Gun Energy Gun Heavy EM Pulse Gun Energy Cannon Subdweller Beam Cannon Ballistic Gun Battle Rifle Launcher Grenade Launcher Special Weapon Mining Laser Impact Weapon Hammer Build | -11 -10 -10 ------- Run | Yrd Mat Sub Slots Evolved . | . . . Power . | . . . Propulsion . | . . . Utility . | . . . Weapon . | . . . Parts Attached 26 | 8 7 11 Power 3 | 1 1 1 Engine 3 | 1 1 1 Core . | . . . Reactor . | . . . Propulsion 6 | 2 . 4 Treads 6 | 2 . 4 Leg . | . . . Wheel . | . . . Hover . | . . . Flight . | . . . Utility 5 | 2 2 1 Device 1 | 1 . . Storage 2 | 1 1 . Processor . | . . . Hackware . | . . . Protection 2 | . 1 1 Artifact . | . . . Weapon 12 | 3 4 5 Energy Gun 5 | 2 2 1 Energy Cannon 1 | . . 1 Ballistic Gun 3 | 1 . 2 Ballistic Cannon . | . . . Launcher 1 | . 1 . Special Weapon 1 | . 1 . Impact Weapon 1 | . . 1 Slashing Weapon . | . . . Piercing Weapon . | . . . Special Melee Weapon . | . . . Unidentified Prototypes . | . . . Parts Lost 5 | . . 5 Power 1 | . . 1 Propulsion 2 | . . 2 Utility 1 | . . 1 Weapon 1 | . . 1 Highest Loss Streak 4 | . . 4 To Critical Strikes . | . . . Average Backups 9 | 1 9 9 Power 1 | . 1 1 Propulsion 1 | . 1 1 Utility 2 | . 1 2 Weapon 4 | 1 5 4 Tool/Special . | . . . Unused Backups 6 | . 1 5 Power 1 | . . 1 Propulsion 1 | . . 1 Utility 2 | . . 2 Weapon 2 | . 1 1 Tool/Special . | . . . Average Slot Usage (%) 95 | . 100 92 Engine 13 | . 14 13 Treads 27 | . 28 27 Device 7 | . 12 4 Storage 10 | . 14 7 Protection 5 | . 1 8 Energy Gun 10 | . 19 5 Energy Cannon 3 | . . 6 Ballistic Gun 10 | . 6 13 Impact Weapon 1 | . . 2 Peak Build Rating 13 | 7 10 13 Average Rating 9 | 5 8 10 On Entrance 5 | . 7 10 Avg Prop Armor Cover (%) . | . . . Naked Turns . | . . . Heaviest Build 34 | 14 34 34 Greatest Support 40 | 40 40 40 Greatest Overweight (x) . | . . . Average Overweight (x) . | . . . Largest Inventory Capacity 15 | 8 15 15 Average Capacity 11 | 7 13 10 Most Carried 15 | 2 15 15 Average Carried 9 | 1 9 10 Final Capacity 15 | 8 15 5 Final Carried 15 | 2 15 5 Class Distribution -------------------- 100% | Mutant Dominant Class ---------------- Mutant | -10/Materials Mutant | -10/Subcaves Resources | -11 -10 -10 ----------- Run | Yrd Mat Sub Matter Collected 1022 | 286 265 471 Remotely . | . . . Salvage Created 1136 | 109 680 347 Parts 84 | 11 38 35 Haulers Intercepted 2 | . 2 . Recyclers Shooed 1 | 1 . . Parts Field Recycled . | . . . Retrieved Matter . | . . . Parts Self-Destructed 15 | . . 15 Prevented . | . . . Parts Restored . | . . . Kills | -11 -10 -10 ------- Run | Yrd Mat Sub Combat Hostiles Destroyed 28 | . 14 14 Guns 17 | . 9 8 Cannons 1 | . . 1 AOE 9 | . 4 5 Classes Destroyed 9 | 2 6 1 Worker 1 | . 1 . Tunneler 3 | 3 . . Hauler 2 | . 2 . Recycler 2 | 1 1 . Operator 1 | . 1 . Watcher 2 | . 2 . Swarmer 9 | . 6 3 Grunt 8 | . 8 . Subdweller 11 | . . 11 Best Kill Streak 4 | 4 4 3 Combat Bots Only 3 | . 3 3 Max Kills in Single Turn 3 | 1 3 2 Gunslinging . | . . . Exploded 3 | . 3 2 Melee . | . . . Uniques/NPCs Destroyed . | . . . Combat | -11 -10 -10 -------- Run | Yrd Mat Sub Hostile Shots Fired 112 | . 40 72 Missed 34 | . 16 18 Hits 78 | . 24 54 Projectile 78 | . 24 54 AOE 5 | . . 5 Critical Strikes 2 | . 1 1 Damage Taken 1497 | . 250 1247 Core 260 | . 30 230 Absorbed by Shields . | . . . Core Remaining (%) 100 | 100 . . Volleys Fired 112 | 6 52 54 Largest 2 | 2 2 2 Hottest 105 | 70 100 105 Shots Fired 182 | 12 93 77 Gun 148 | 12 82 54 Cannon 10 | . . 10 Launcher 15 | . 2 13 Special 9 | . 9 . Kinetic 54 | 6 15 33 Thermal 49 | 6 24 19 Explosive 15 | . 2 13 Electromagnetic 64 | . 52 12 Robot Hit Streak 12 | 7 12 9 Robot Miss Streak 3 | . 3 3 Penetration Max . | . . . Secondary Targets 1 | . . 1 Max Gunslinging Chain 1 | . . 1 Shots Hit Robots 106 | 7 56 43 Core Hits 59 | 6 28 25 Critical Kills . | . . . Critical Parts Destroyed . | . . . Critical Strikes 4 | . 4 . Burn 1 | . 1 . Corrupt 3 | . 3 . Melee Attacks 9 | . . 9 Impact 9 | . . 9 Slashing . | . . . Piercing . | . . . Sneak Attacks . | . . . Combat Hostiles . | . . . Follow-up Attacks . | . . . Damage Inflicted 2318 | 104 1057 1157 Guns 1351 | 104 803 444 Cannons 111 | . . 111 Explosions 856 | . 254 602 Melee . | . . . Ramming . | . . . Kinetic 438 | 43 85 310 Thermal 393 | 61 221 111 Explosive 772 | . 170 602 Electromagnetic 715 | . 581 134 Impact . | . . . Slashing . | . . . Piercing . | . . . Highest Corruption 1 | . 1 1 Average Corruption 1 | . 1 1 Corruption Purged . | . . . Corruption Blocked . | . . . Effects 31 | . 5 26 Message Errors 10 | . 1 9 Matter Fused 6 | . . 6 Heat Flow Errors 4 | . . 4 Energy Discharges 3 | . 1 2 Data Loss (minor) 3 | . . 3 Data Loss (major) 3 | . 2 1 Alerts 2 | . 1 1 Overload Shots . | . . . Overflow Damage 26 | . 19 7 Projectiles 7 | . . 7 Explosions 19 | . 19 . Melee . | . . . Knockbacks . | . . . Impact . | . . . Kinetic . | . . . Secondary . | . . . Self-Inflicted Damage 8 | . . 8 Shots 1 | . . 1 Rammed . | . . . Targets Rammed . | . . . Kicked . | . . . Crushed . | . . . Highest Temperature 223 | 70 186 223 Average Temperature 53 | 26 54 61 Received Heat Transfer 186 | . 117 69 Siege Activations . | . . . Martial Activations . | . . . Shielding Activations . | . . . Robots Disrupted . | . . . Combat Hostiles . | . . . Robots Corrupted 1 | . 1 . Combat Hostiles 1 | . 1 . Parts Fried 4 | . 2 2 Impact Corruptions . | . . . Robots Melted . | . . . Combat Hostiles . | . . . Parts Melted 2 | . 2 . Heat Transferred 914 | 185 581 148 Parts Sabotaged . | . . . Parts Stolen . | . . . Parts Stripped . | . . . Power Chain Reactions 1 | . 1 . Alert | -11 -10 -10 ------- Run | Yrd Mat Sub Maximum Alert Level . | . . . Low Security (%) 100 | 100 100 . Level 1 . | . . . Level 2 . | . . . Level 3 . | . . . Level 4 . | . . . Level 5 . | . . . High Security . | . . . Max Security . | . . . Peak Influence 117 | 15 117 . Initial . | . . . Average 45 | 3 49 . Influence Increases 526 | 20 416 90 Destroy 0b10 Robot/C 340 | . 280 60 Destroy 0b10 Robot/NC 55 | 20 35 . Destroy Leader 58 | . 58 . Destroy Structure 28 | . 28 . Lose Combat Pursuer 45 | . 15 30 Influence Decreases 502 | 20 396 86 Entered New Map 10 | . . 10 Time Decay 492 | 20 396 76 Squads Dispatched 2 | . 2 . Investigation 1 | . 1 . Extermination . | . . . Reinforcement 1 | . 1 . Assault . | . . . Garrison . | . . . Intercept . | . . . Searches Triggered . | . . . Construction Impeded . | . . . Haulers Reinforced . | . . . Active Scanning Responses . | . . . Cargo Convoy Interrupts . | . . . Stealth | -11 -10 -10 --------- Run | Yrd Mat Sub Distress Signals 1 | . 1 . Communications Jammed . | . . . Distress Signals . | . . . Times Spotted 39 | . 22 17 Peak Tracking Total 5 | . 4 5 Tactical Retreats 2 | . 1 1 Traps | -11 -10 -10 ------- Run | Yrd Mat Sub Traps Triggered 1 | . 1 . Indirectly . | . . . Trap Hack Attempts . | . . . Triggered . | . . . Disarmed . | . . . Reprogrammed . | . . . Reused . | . . . Traps Extracted . | . . . Installed . | . . . Triggered . | . . . Machines | -11 -10 -10 ---------- Run | Yrd Mat Sub Machines Disabled . | . . . Max in Single Turn . | . . . Machines Repaired . | . . . Machines Dismantled . | . . . Machines Sabotaged . | . . . Overloaded Fab Kills . | . . . Hacking | -11 -10 -10 --------- Run | Yrd Mat Sub Machines Accessed 5 | . 4 1 Terminals 3 | . 3 . Fabricators . | . . . Repair Stations . | . . . Recycling Units 1 | . 1 . Scanalyzers . | . . . Garrison Access . | . . . Total Hacks 11 | . 7 4 Successful 6 | . 2 4 Failed 5 | . 5 . Catastrophic 1 | . 1 . Database Lockouts . | . . . Manual . | . . . Terminals 5 | . 5 . Fabricators . | . . . Repair Stations . | . . . Recycling Units 2 | . 2 . Scanalyzers . | . . . Garrison Access . | . . . Terminal Hacks 5 | . 1 4 Record 4 | . . 4 Zone Layout 1 | . 1 . Fabricator Hacks . | . . . Repair Station Hacks . | . . . Recycling Unit Hacks 1 | . 1 . Report Inventory 1 | . 1 . Scanalyzer . | . . . Garrison Access Hacks . | . . . Unauthorized Hacks . | . . . Terminals . | . . . Fabricators . | . . . Repair Stations . | . . . Recycling Units . | . . . Scanalyzers . | . . . Garrison Access . | . . . Data Cores Recovered 1 | . 1 . Used . | . . . Hacking Detections 2 | . 2 . Full Trace Events . | . . . Feedback Events . | . . . Feedback Blocked . | . . . Robot Schematics Acquired . | . . . Robots Built . | . . . Authchips . | . . . Time . | . . . Total Robot Build Rating . | . . . Part Schematics Acquired . | . . . Parts Built . | . . . Authchips . | . . . Time . | . . . Total Part Build Rating . | . . . Part Studies Acquired . | . . . Parts Repaired . | . . . Time . | . . . Parts Recycled . | . . . Recycled Matter . | . . . Retrieved Matter . | . . . Retrieved Components . | . . . Parts Scanalyzed . | . . . Part Schematics Acquired . | . . . Parts Damaged . | . . . Bothacking | -11 -10 -10 ------------ Run | Yrd Mat Sub Used RIF Installer . | . . . Robots Hacked . | . . . Non-combat . | . . . Combat . | . . . Robot Hacks Applied . | . . . Relay Couplers Released . | . . . Fabnet Peak Effective % . | . . . Robots Rewired . | . . . Allies Hacked . | . . . Hacks Repelled . | . . . Allies | -11 -10 -10 -------- Run | Yrd Mat Sub Total Allies . | . . . Largest Group . | . . . Highest-Rated Group . | . . . Highest-Rated Ally . | . . . Total Orders . | . . . Ally Attacks . | . . . Total Damage . | . . . Kills . | . . . Allies Corrupted . | . . . Allies Melted . | . . . Intel | -11 -10 -10 ------- Run | Yrd Mat Sub Active Infowar (turns) 1869 | 27 1112 730 Seismic 1869 | 27 1112 730 Robot Analysis Total . | . . . Derelict Logs Recovered 2 | . . 2 Drone Launches . | . . . Drone Recoveries . | . . . Exploration | -11 -10 -10 ------------- Run | Yrd Mat Sub Turns Passed 3467 | 120 1292 2055 Spaces Moved 1797 | 59 606 1132 Core 4 | 4 . . Treads 1793 | 55 606 1132 Legs . | . . . Wheels . | . . . Hover . | . . . Flight . | . . . Fastest Speed 50 | 50 160 160 Average Speed 159 | 152 160 160 Slowest Speed 160 | 160 160 160 Overloaded Moves . | . . . Propulsion Burnouts . | . . . Robots Hopped . | . . . Potential Cave-ins . | . . . Cave-ins Triggered . | . . . Exploration Rate (%) 55 | 4 89 73 Regions Visited 2 Branch Regions 1 Pre-discovered Areas 2 | . . 2 Known Exits Taken . | . . . Unknown Exits Taken 2 | 1 1 . Scrap Searched 4 | . . 4 Spaces Dug 7 | . 7 . Terrain Destroyed 85 | . 28 57 Melee . | . . . Projectile 9 | . 9 . AOE 76 | . 19 57 Terrain Rammed . | . . . Walls Destroyed . | . . . Machines Disabled . | . . . Actions | -11 -10 -10 --------- Run | Yrd Mat Sub Total 2171 | 74 816 1281 Wait 166 | . 129 37 Move 1795 | 58 605 1132 Hop . | . . . Pick Up 25 | 2 14 9 Fast Attach 8 | 7 . 1 Attach 6 | . . 6 Detach . | . . . Swap 33 | 1 13 19 Drop 13 | . 3 10 Fire 112 | 6 52 54 Melee 9 | . . 9 Ram . | . . . Kick . | . . . Crush . | . . . Escape Stasis . | . . . Rewire . | . . . Trap . | . . . Miscellaneous 4 | . . 4 Route ------- -11/Scrapyard -10/Materials (discovered 6 exits: [*Mat x3] / [*Min x2] / *Sub) -10/Subcaves (discovered 3 exits: [*Mat] / [*Rec] / [*Scr]) History --------- Turn | Location | Event 7 | -11/Scrapyard | Discovered new exit (range 15) 121 | -11/Scrapyard | Entered Materials 305 | -10/Materials | Build established: Mutant 422 | -10/Materials | Discovered new exit (range 16) 879 | -10/Materials | Discovered new exit (range 7) 976 | -10/Materials | Discovered new exit (range 15) 985 | -10/Materials | Discovered new exit (range 6) 1321 | -10/Materials | Discovered new exit (range 5) 1396 | -10/Materials | Discovered new exit (range 7) 1413 | -10/Materials | Entered Subcaves 1414 | -10/Subcaves | Approached by a straggling Scientist 1416 | -10/Subcaves | Learned location of Storage (-9) 1992 | -10/Subcaves | A swath of the cavern ceiling suddenly collapsed 2125 | -10/Subcaves | Learned location of Zion (-6) 2125 | -10/Subcaves | Met a Zionite searching for "candidates" 2198 | -10/Subcaves | A swath of the cavern ceiling suddenly collapsed 2405 | -10/Subcaves | Core integrity fell below 50% 2449 | -10/Subcaves | Lost 4 parts (2n1u1w) 2458 | -10/Subcaves | Learned Materials stockpile data 2473 | -10/Subcaves | Discovered new exit (range 12) 2482 | -10/Subcaves | Shifting Twisted Machinery released Spk. Treads 2487 | -10/Subcaves | Shifting Twisted Machinery released Sub. Power Source 2542 | -10/Subcaves | Core integrity fell below 20% 2676 | -10/Subcaves | Scientist uncovered a shortcut to Scraptown 2792 | -10/Subcaves | Visited Clippyterm 2796 | -10/Subcaves | Learned 40 Factory zone layouts 2993 | -10/Subcaves | Discovered new exit (range 16) 3468 | -10/Subcaves | Destroyed by XV-441(R) with Subdweller Laser Last Messages --------------- 03250_ Found Sub. Power Source. 03250_ Found 34 Matter. 03251_ Acquired 10 matter. 03251_ Searching scrap... 03251_ Found Sub. Laser. 03251_ Found 53 Matter. 03253_ Searching scrap... 03253_ Found Mak. Hammer. 03253_ Found 66 Matter. 03256_ Dropped Hammer. 03256_ Acquired Mak. Hammer. 03261_ Searching scrap... 03261_ Found Sub. Monowheel. 03261_ Found 32 Matter. 03376_ Scrap Shield Fragment affixed to Scrap Shield (+38). 03378_ Scrap Shield Fragment affixed to Scrap Shield (+48). 03396_ System corrupted: Component data lost. 03418_ R5-70P(u) tweaks Twisted Machinery. 03455_ Sub. Beam Cannon shoots sparks and powers down. 03464_ 5C-RWB(R) destroyed. Map ----- +----------------------------------------------------+ | | | | | | | | | | | ?????????????????????????????????????????????????? | | ?????????????????????????????????????????????????? | | ?????????????????????????????????????????????????? | | ?????????????????????????????????????????????????? | | ?????????????????????????????????????????????????? | | ?????????????????????????????????????????????????? | | ?????????????????????????????????????????????????? | | ?????????????????????????????????????????????????? | | ?????????????????????????????????????????????????? | | ?????????????????????????????????????????????????? | | ??????????????????????############???????????????? | | ?????????????????????<< <<< $ $##??????????????? | | ???????????????????#< <<<< $ $#??????????????? | | ???????????????????# <<<< $ ???????????????? | | ???????????????????#<<< &< $ $ ???????????????? | | #??????????????????# << & $<